bitfinex-derivatives/quotes_ETHF0:USTF0_20250115
["timestamp","ask_amount","ask_price","bid_price","bid_amount"]
[1736952310243,3.5207204,3295.3,3294.6,3.2078]
[1736952310542,3.5207204,3295.3,3294.8,0.60715]
[1736952310746,0.60711,3295.1,3294.9,0.60715]
[1736952310934,3.2078,3295.8,3295.0,3.2078]
[1736952311138,3.2078,3295.8,3295.3,2.82575219]
[1736952311442,0.60715,3294.9,3294.8,3.2078]
[1736952312148,0.60715,3294.9,3294.4,3.2078]
[1736952312149,3.17884963,3294.9,3294.4,3.2078]
[1736952312339,3.2078,3295.4,3294.5,2.82575219]
[1736952312539,3.2078,3295.4,3294.4,3.2078]
[1736952312745,2.12482,3295.2,3294.2,1.32676]
[1736952312942,3.2078,3295.0,3294.3,0.60725]
[1736952313240,0.60716,3294.9,3294.5,0.6072]
[1736952313445,0.60717,3294.8,3294.5,0.6072]
[1736952313654,3.28512305,3294.9,3294.7,0.60718]
[1736952313944,0.60709,3295.2,3294.5,0.60722]
[1736952314149,3.3751574,3294.9,3294.4,3.2078]
[1736952314349,1.3633,3295.3,3294.4,3.2078]
[1736952314646,0.60715,3294.9,3294.8,3.2078]
[1736952315041,0.60715,3294.9,3294.6,0.60719]
[1736952315042,3.5218152,3295.2,3294.4,3.2078]
[1736952315351,0.60722,3294.5,3294.4,3.2078]
[1736952315649,1.51789,3294.9,3294.1,40.8]
[1736952315851,8.2473952,3295.1,3294.1,40.8]
[1736952315852,3.2078,3294.7,3294.1,40.8]
[1736952316042,0.60725,3294.4,3294.1,41.40729]
[1736952316239,0.60725,3294.4,3293.8,7.58355219]
[1736952316240,0.60723,3294.5,3294.2,0.60727]
[1736952316438,3.40801398,3295.0,3294.4,3.2078]
[1736952316650,3.2078,3295.2,3294.4,3.2078]
[1736952316838,0.60715,3294.9,3294.6,0.60719]
[1736952317038,3.2078,3295.2,3294.5,43.62575219]
[1736952317457,3.2078,3295.2,3294.6,1.55]
[1736952317653,3.2078,3295.2,3294.9,3.43289219]
[1736952317654,0.60712,3295.1,3294.9,3.43289219]
[1736952317952,0.60713,3295.0,3294.6,1.55]
[1736952318145,3.2078,3295.2,3294.6,1.55]
[1736952318344,0.60711,3295.1,3294.9,0.60713]
[1736952318745,3.2078,3295.2,3294.5,43.62575219]
[1736952318746,3.2078,3295.2,3294.5,40.8]
[1736952319050,3.46258498,3295.0,3294.4,3.2078]
[1736952319247,0.60722,3294.5,3294.4,3.2078]
[1736952319945,3.2078,3295.2,3294.4,6.03355219]
[1736952320249,0.60708,3295.3,3295.1,0.6071]
[1736952320449,0.60708,3295.3,3295.2,40.8]
[1736952320650,0.6977,3295.6,3294.8,1.55]
[1736952320651,4.16369169,3295.6,3294.8,1.55]
[1736952320846,0.60705,3295.5,3295.2,0.60708]
[1736952321048,0.60705,3295.5,3295.3,0.60707]
[1736952321253,0.60705,3295.5,3294.8,1.55]
[1736952321254,0.60706,3295.4,3295.2,0.60708]
[1736952321442,0.60706,3295.4,3294.8,4.7578]
[1736952321649,0.6071,3295.2,3295.0,0.60713]
[1736952321853,0.60707,3295.3,3295.1,0.6071]
[1736952322048,0.60707,3295.3,3294.8,4.7578]
[1736952322049,3.44461139,3295.5,3295.2,0.60707]
[1736952322249,3.44461139,3295.5,3295.4,3.81485]
[1736952322457,3.2078,3296.5,3295.4,6.03355219]
[1736952322750,0.607,3295.7,3295.5,0.60702]
[1736952322948,1.51726,3296.3,3295.5,4.34333219]
[1736952322949,0.6069,3296.3,3295.5,4.34333219]
[1736952323149,0.6346,3296.7,3296.4,0.60687]
[1736952325154,0.60693,3296.1,3295.9,3.2078]
[1736952325448,3.2078,3296.6,3295.9,3.2078]
[1736952325752,8.87591219,3297.1,3296.5,0.60684]
[1736952325950,0.60686,3296.5,3296.1,0.60692]
[1736952326252,3.26788648,3296.5,3295.9,3.2078]
[1736952326550,3.26788648,3297.0,3295.9,3.2078]
[1736952326551,1.51699,3296.9,3296.3,0.60688]
[1736952326849,1.51699,3296.9,3296.3,3.2078]
[1736952326850,0.6607,3296.9,3296.3,3.2078]
[1736952327054,0.60687,3296.4,3296.3,3.2078]
[1736952327446,0.60687,3296.4,3295.6,1.55]
[1736952327447,6.71646631,3296.4,3296.0,0.60693]
[1736952327755,6.71646631,3296.4,3295.8,3.2078]
[1736952327952,3.50866631,3296.4,3296.3,0.60689]
[1736952328153,0.60684,3296.6,3296.2,3.2078]
[1736952328350,0.6607,3296.9,3296.2,3.2078]
[1736952328556,3.43011782,3296.5,3295.8,3.2078]
[1736952328855,0.60694,3296.1,3295.9,0.60695]
[1736952329154,0.60695,3296.0,3295.8,3.81476]
[1736952329456,4.72493,3296.6,3295.8,3.2078]
[1736952329652,3.2078,3296.6,3295.8,6.03355219]
[1736952329854,0.6607,3296.9,3296.8,0.6068]
[1736952330154,3.2078,3297.0,3296.9,0.60678]
[1736952330456,3.2078,3297.0,3296.6,3.2078]
[1736952330652,0.60681,3296.7,3296.6,3.2078]
[1736952330849,0.60692,3296.2,3295.7,4.7578]
[1736952331051,4.72492,3296.6,3295.7,3.2078]
[1736952331245,0.60698,3295.8,3295.7,3.2078]
[1736952331449,0.60705,3295.4,3295.3,3.2078]
[1736952332060,3.84027,3295.4,3295.3,3.2078]
[1736952332359,3.2078,3295.7,3295.3,3.2078]
[1736952332760,0.60705,3295.4,3295.3,3.2078]
[1736952332956,0.60714,3295.0,3294.8,0.60716]
[1736952333149,0.60715,3294.9,3294.7,6.64071219]
[1736952333354,0.60714,3295.0,3294.8,0.60715]
[1736952333659,0.6807,3295.5,3294.7,6.03355219]
[1736952333858,3.45927305,3295.3,3294.7,6.03355219]
[1736952334052,3.2078,3295.7,3295.6,0.60702]
[1736952334253,3.2078,3296.2,3296.1,0.60692]
[1736952334452,3.2078,3296.2,3295.5,6.03355219]
[1736952334659,3.2078,3296.2,3296.0,0.60694]
[1736952334660,0.60692,3296.2,3296.0,0.60694]
[1736952334858,0.60694,3296.1,3295.5,8.91450219]
[1736952335058,1.51714,3296.5,3295.5,7.39695219]
[1736952335253,3.51055528,3296.0,3295.5,4.48932]
[1736952335556,0.60702,3295.6,3295.5,3.2078]
[1736952335860,0.607,3295.7,3295.6,0.60701]
[1736952336153,4.72503,3296.3,3295.5,3.2078]
[1736952336355,0.60699,3295.8,3295.6,0.607]
[1736952336552,0.60697,3295.9,3295.7,0.60699]
[1736952336859,0.60698,3295.8,3295.7,0.60699]
[1736952337261,3.49119832,3296.1,3295.5,3.2078]
[1736952337457,0.60702,3295.6,3295.5,3.2078]
[1736952337960,0.60711,3295.1,3295.0,3.2078]
[1736952338849,0.6572,3295.5,3295.0,3.2078]
[1736952339059,0.60709,3295.2,3295.1,0.6071]
[1736952339453,3.2078,3295.8,3295.0,3.2078]
[1736952339661,3.2078,3295.8,3295.1,1.548]
[1736952339857,3.2078,3295.8,3295.7,0.607]
[1736952340053,0.60699,3295.8,3295.7,0.60699]
[1736952340251,0.60697,3295.9,3295.7,0.60699]
[1736952340457,0.60698,3295.8,3295.7,0.60699]
[1736952340961,3.2078,3296.2,3295.4,3.2078]
[1736952341160,0.60698,3295.9,3295.7,0.60699]
[1736952341463,0.60698,3295.9,3295.8,0.60698]
[1736952341667,0.60698,3295.8,3295.7,0.60699]
[1736952341853,0.60695,3296.0,3295.9,0.60695]
[1736952342053,3.33670184,3296.1,3296.0,0.60694]
[1736952342562,3.2078,3296.2,3296.1,0.60692]
[1736952342754,3.2078,3296.2,3295.9,1.548]
[1736952342955,3.2078,3296.2,3296.1,0.60692]
[1736952343151,1.368,3297.1,3296.6,0.60683]
[1736952343353,1.368,3297.1,3296.1,3.2078]
[1736952343558,0.60682,3296.7,3296.6,0.60683]
[1736952344062,1.368,3297.1,3296.3,40.8]
[1736952344362,0.60686,3296.5,3296.4,0.60685]
[1736952344662,0.60685,3296.5,3296.4,0.60685]
[1736952344851,0.60685,3296.5,3296.3,40.8]
[1736952344852,0.60674,3297.1,3296.7,0.60681]
[1736952345058,6.03355219,3297.3,3296.3,40.8]
[1736952345253,0.60673,3297.2,3297.1,0.60673]
[1736952345662,0.60676,3297.1,3297.0,0.60674]
[1736952345954,4.5439,3297.7,3296.9,3.2078]
[1736952346162,4.5439,3297.7,3297.0,0.60676]
[1736952346356,3.2078,3298.1,3297.4,1.51672]
[1736952346558,3.2078,3298.1,3298.0,0.60657]
[1736952346763,0.00476133,3298.2,3298.1,0.60656]
[1736952347067,0.00476133,3298.2,3298.1,3.81436]
[1736952351266,0.00476133,3298.2,3297.7,3.2078]
[1736952351468,3.18901031,3298.2,3297.3,3.2078]
[1736952351771,0.60658,3298.0,3297.4,0.60668]
[1736952351970,3.18901031,3298.2,3297.3,3.2078]
[1736952352165,0.60662,3297.8,3297.3,3.2078]
[1736952352372,3.24436983,3297.9,3297.3,3.2078]
[1736952352574,3.24436983,3297.7,3297.3,3.2078]
[1736952352872,3.24436983,3297.8,3297.3,3.2078]
[1736952353171,2.82575219,3297.9,3296.7,0.6404]
[1736952353172,3.2078,3297.5,3296.7,0.6404]
[1736952353472,0.617,3297.6,3296.8,0.60679]
[1736952353473,0.60671,3297.3,3296.8,0.60679]
[1736952353667,3.80378814,3297.4,3296.9,0.60676]
[1736952353977,3.45751333,3297.5,3296.7,0.6404]
[1736952354166,4.06421333,3297.3,3296.9,0.60677]
[1736952354366,0.6067,3297.3,3296.9,0.60677]
[1736952354568,0.60671,3297.3,3297.0,0.60676]
[1736952354770,0.60672,3297.3,3296.7,0.6404]
[1736952354968,3.2078,3297.6,3297.4,0.60668]
[1736952355170,3.2078,3297.6,3297.0,3.2078]
[1736952355369,0.60668,3297.5,3297.2,0.60671]
[1736952355571,3.2078,3297.6,3297.0,3.2078]
[1736952355866,3.81446,3297.6,3297.4,0.60667]
[1736952356070,0.60662,3297.8,3297.0,7.55045219]
[1736952356273,0.60662,3297.8,3297.6,0.60664]
[1736952356274,0.60661,3297.8,3297.6,0.60664]
[1736952356467,3.2078,3297.9,3297.4,1.547]
[1736952356665,3.35809238,3297.7,3297.4,1.547]
[1736952356864,0.60656,3298.1,3297.4,7.58055219]
[1736952357064,0.65116133,3298.2,3297.4,7.58055219]
[1736952357269,0.60667,3297.5,3297.4,3.2078]
[1736952357472,3.2078,3297.9,3297.1,0.6415]
[1736952357772,0.65116133,3298.2,3297.4,3.2078]
[1736952358073,0.60659,3298.0,3297.8,0.6066]
[1736952358277,3.8377343,3298.1,3297.9,0.60658]
[1736952358480,0.00476133,3298.2,3297.4,6.03355219]
[1736952358770,0.60659,3298.0,3297.7,0.60661]
[1736952358978,0.00476133,3298.2,3297.8,40.8]
[1736952359278,0.00476133,3298.2,3297.4,6.03355219]
[1736952359472,0.60657,3298.0,3297.8,0.6066]
[1736952359770,0.60657,3298.0,3297.9,40.8]
[1736952360170,0.00476133,3298.2,3297.9,48.38055219]
[1736952360371,0.00476133,3298.2,3298.0,0.60657]
[1736952360570,0.00476133,3298.2,3297.9,48.38055219]
[1736952360571,0.00476133,3298.2,3297.9,45.5548]
[1736952360869,0.60657,3298.0,3297.9,44.0078]
[1736952361071,0.60661,3297.8,3297.7,1.547]
[1736952361278,3.34326977,3298.0,3297.1,2.1885]
[1736952361468,4.85975977,3298.0,3297.1,2.1885]
[1736952361672,0.60671,3297.3,3297.1,2.15374]
[1736952361874,3.21329706,3297.9,3297.1,1.547]
[1736952362170,0.60661,3297.8,3297.6,0.60663]
[1736952362378,0.6066,3297.9,3297.5,0.60667]
[1736952362678,0.579,3298.1,3297.4,3.2078]
[1736952362878,3.21329706,3298.0,3297.4,3.2078]
[1736952363179,0.00476133,3298.2,3297.8,3.2078]
[1736952363373,0.00476133,3298.2,3298.1,0.60656]
[1736952363874,0.00476133,3298.2,3298.1,3.43231219]
[1736952364275,0.00476133,3298.2,3298.1,0.60656]
[1736952364576,0.61131133,3298.2,3298.0,0.60657]
[1736952364775,0.00476133,3298.2,3297.9,2.1705]
[1736952364971,0.61131133,3298.2,3298.0,0.60657]
[1736952365578,0.00476133,3298.2,3297.9,42.9705]
[1736952366076,0.00476133,3298.2,3297.9,1.547]
[1736952366280,0.00476133,3298.2,3298.1,3.43231219]
[1736952366481,0.60637,3299.1,3298.9,0.6064]
[1736952366674,3.2078,3299.3,3298.7,6.03355219]
[1736952366977,3.2078,3299.3,3299.2,0.60635]
[1736952367182,0.6063,3299.5,3299.1,3.81417]
[1736952367376,0.60635,3299.3,3299.1,3.2078]
[1736952367573,0.6248,3299.6,3299.1,3.2078]
[1736952367777,0.60635,3299.2,3299.1,3.2078]
[1736952367978,3.25644957,3299.5,3298.8,0.6529]
[1736952368174,3.2078,3299.5,3298.8,0.6529]
[1736952368479,0.6064,3299.0,3298.8,0.6529]
[1736952368678,4.72355,3299.5,3298.7,6.03355219]
[1736952368878,3.33528529,3298.9,3298.3,3.2078]
[1736952369077,3.2078,3298.6,3297.9,3.2078]
[1736952369278,0.60657,3298.0,3297.9,3.2078]
[1736952369480,0.60667,3297.5,3297.4,3.2078]
[1736952369685,3.2078,3298.2,3297.4,3.2078]
[1736952369686,4.72418,3298.2,3297.4,3.2078]
[1736952369982,8.21696272,3298.2,3297.4,3.2078]
[1736952370180,0.60664,3297.7,3297.5,0.60666]
[1736952370478,0.60657,3298.0,3297.5,0.60666]
[1736952370683,4.7242,3298.2,3297.6,0.60664]
[1736952370877,0.60663,3297.7,3297.6,0.60664]
[1736952371077,0.60665,3297.7,3297.5,0.60666]
[1736952371279,0.60666,3297.6,3297.4,3.81447]
[1736952371475,1.5164,3298.2,3297.4,3.2078]
[1736952371877,3.83412074,3298.1,3297.5,0.60666]
[1736952372084,0.60662,3297.8,3297.6,0.60665]
[1736952372379,3.2078,3298.4,3297.7,4.34230219]
[1736952372582,3.2078,3298.4,3297.8,3.2078]
[1736952372878,3.2078,3298.4,3297.9,0.60659]
[1736952372879,0.60657,3298.1,3297.9,0.60659]
[1736952373083,1.2734,3298.5,3297.8,3.2078]
[1736952373286,3.2078,3298.4,3297.8,3.2078]
[1736952373476,5.43786687,3298.3,3297.7,0.60662]
[1736952373671,3.31503687,3298.3,3297.4,3.2078]
[1736952373881,1.51635,3298.2,3297.4,3.2078]
[1736952374081,0.60661,3297.9,3297.7,0.60662]
[1736952374282,3.90750019,3298.3,3298.1,0.60654]
[1736952374579,3.2078,3298.8,3298.0,3.2078]
[1736952374782,0.60649,3298.5,3298.3,0.6065]
[1736952375079,0.60652,3298.3,3298.2,0.60653]
[1736952375284,0.60652,3298.3,3298.0,3.2078]
[1736952375481,0.60652,3298.3,3298.2,0.60654]
[1736952375678,3.44679084,3298.2,3297.3,0.5826]
[1736952375879,0.60668,3297.4,3297.2,3.2078]
[1736952376180,3.2078,3297.9,3296.8,3.2078]
[1736952376181,1.51657,3297.8,3296.8,3.2078]
[1736952376384,1.51657,3297.8,3297.2,0.60672]
[1736952376385,0.60671,3297.3,3297.2,0.60672]
[1736952376574,0.60671,3297.3,3297.1,0.60673]
[1736952376886,1.51664,3297.6,3296.8,3.2078]
[1736952377080,1.51657,3297.8,3296.8,3.2078]
[1736952377277,1.51666,3297.6,3296.8,3.2078]
[1736952377476,0.60672,3297.2,3296.9,0.60678]
[1736952377683,0.60678,3296.9,3296.8,3.2078]
[1736952377888,0.60685,3296.5,3296.4,3.2078]
[1736952378082,0.60684,3296.6,3296.4,0.60686]
[1736952378585,0.60682,3296.7,3296.5,0.60683]
[1736952378986,0.60683,3296.6,3296.5,0.60683]
[1736952379182,0.60683,3296.6,3296.4,3.2078]
[1736952379381,3.48779218,3296.9,3296.5,0.60685]
[1736952379586,3.48779218,3296.9,3296.2,1.546]
[1736952379780,3.2078,3297.8,3296.8,3.2078]
[1736952379987,3.2078,3297.8,3296.9,0.60676]
[1736952379988,0.60675,3297.1,3296.9,0.60676]
[1736952380185,7.23811677,3297.8,3296.8,3.2078]
[1736952380485,3.8151,3297.8,3296.9,4.34270219]
[1736952380790,3.42301677,3297.7,3297.0,1.546]
[1736952380988,0.60674,3297.1,3297.0,1.546]
[1736952381193,0.60673,3297.2,3297.0,2.15275]
[1736952381483,3.8151,3297.8,3297.0,1.546]
[1736952381685,0.60651,3298.4,3298.1,0.60656]
[1736952381883,0.60644,3298.8,3298.7,0.60645]
[1736952382088,8.85146502,3299.0,3298.6,0.60646]
[1736952382281,8.24506502,3299.0,3298.8,0.60641]
[1736952382482,8.85146502,3299.0,3298.8,0.60641]
[1736952382680,8.24506502,3299.0,3298.9,0.60641]
[1736952382886,8.24506502,3299.0,3298.9,3.81421]
[1736952383087,1.2511,3299.6,3298.9,3.2078]
[1736952383385,0.60635,3299.3,3299.0,0.60638]
[1736952383692,3.2078,3299.4,3298.9,0.60641]
[1736952383887,0.60634,3299.3,3298.8,2.15242]
[1736952384079,0.60639,3299.0,3298.8,2.15242]
[1736952384285,3.45131644,3299.3,3298.4,0.6037]
[1736952384483,4.05773644,3298.9,3298.6,0.60645]
[1736952384684,4.05773644,3298.9,3298.7,0.60644]
[1736952384884,0.60644,3298.8,3298.5,0.60647]
[1736952385084,0.60644,3298.8,3298.6,0.60646]
[1736952385389,0.60644,3298.8,3298.2,1.545]
[1736952385390,3.2078,3298.8,3298.2,1.545]
[1736952385592,1.51631,3298.3,3297.4,3.2078]
[1736952385889,0.60661,3297.9,3297.6,0.60664]
[1736952386085,6.64455173,3298.2,3297.1,4.7528]
[1736952386284,3.8084,3298.2,3297.8,0.6066]
[1736952386484,0.6006,3298.2,3297.9,0.60659]
[1736952386684,3.51136642,3298.1,3297.5,3.81446]
[1736952386884,0.60665,3297.6,3297.5,3.2078]
[1736952387288,0.60661,3297.9,3297.4,3.2078]
[1736952387491,1.20715,3298.2,3298.0,0.60657]
[1736952387690,3.40654381,3298.1,3297.2,3.2078]
[1736952387892,3.40654381,3297.8,3297.2,3.2078]
[1736952388095,3.2078,3298.1,3297.2,44.0078]
[1736952388387,3.94468123,3298.0,3297.8,0.60661]
[1736952388583,0.60658,3298.0,3297.7,0.60662]
[1736952388787,3.2078,3298.1,3297.6,3.2078]
[1736952389594,0.60663,3297.7,3297.6,3.2078]
[1736952389901,0.60669,3297.4,3297.2,3.2078]
[1736952390199,0.6067,3297.4,3297.2,3.81451]
[1736952390497,3.22699068,3297.3,3297.2,3.81451]
[1736952390694,3.83369068,3297.3,3297.2,3.2078]
[1736952390900,0.60672,3297.2,3297.1,1.545]
[1736952391089,3.22699068,3297.3,3297.2,0.60672]
[1736952391392,3.2078,3297.6,3297.5,0.60667]
[1736952391690,3.2078,3298.5,3297.2,3.2078]
[1736952391894,3.2078,3298.5,3297.6,3.2078]
[1736952392089,3.2078,3298.5,3298.2,0.60654]
[1736952392090,0.60651,3298.4,3298.2,0.60654]
[1736952392287,3.2078,3298.5,3297.6,3.2078]
[1736952392485,3.45145202,3298.2,3297.2,3.2078]
[1736952392790,3.45145202,3298.4,3297.3,0.6067]
[1736952392791,0.60661,3297.9,3297.3,0.6067]
[1736952393096,3.2078,3298.4,3297.2,3.2078]
[1736952393285,0.60666,3297.6,3297.4,0.60668]
[1736952393491,3.2078,3298.4,3297.2,4.7246]
[1736952393696,3.2078,3298.4,3297.6,3.2078]
[1736952394091,3.2078,3298.4,3297.2,2.1771]
[1736952394092,0.6066,3297.9,3297.7,0.60662]
[1736952394402,0.60659,3297.9,3297.7,0.60662]
[1736952394595,3.2078,3298.4,3297.2,3.8681]
[1736952394793,3.2078,3298.0,3297.3,0.60669]
[1736952395104,0.60665,3297.6,3297.4,0.60668]
[1736952395296,2.76802544,3297.9,3297.2,3.2078]
[1736952395501,6.68205245,3298.4,3298.0,0.60656]
[1736952395502,0.60655,3298.2,3298.0,0.60656]
[1736952395707,3.2078,3298.4,3297.6,3.81444]
[1736952395993,8.89226502,3298.9,3297.3,0.6067]
[1736952395994,0.60667,3297.5,3297.3,0.6067]
[1736952396203,3.2078,3298.0,3297.2,3.2078]
[1736952396397,0.6067,3297.3,3297.2,3.2078]
[1736952396792,3.47275306,3297.3,3296.7,0.6574]
[1736952396994,1.51686,3297.1,3296.4,4.7392107]
[1736952397388,0.60685,3296.5,3296.4,4.7392107]
[1736952397795,3.2078,3296.8,3295.8,0.60697]
[1736952398000,4.54003918,3297.0,3295.7,3.2078]
[1736952398001,3.2078,3296.3,3295.7,3.2078]
[1736952398409,0.09810354,3296.2,3295.7,3.2078]
[1736952398595,0.60698,3295.9,3295.7,3.2078]
[1736952398795,0.60692,3296.1,3295.8,0.60697]
[1736952398995,0.60698,3295.8,3295.7,3.2078]
[1736952399599,3.36501912,3296.2,3295.7,3.2078]
[1736952399800,0.60698,3295.8,3295.7,3.2078]
[1736952400503,0.60707,3295.3,3295.2,3.2078]
[1736952400702,4.67807694,3295.8,3295.1,0.6637]
[1736952400703,0.60709,3295.2,3295.1,0.6637]
[1736952400905,3.2078,3295.5,3295.0,40.8]
[1736952401197,0.6071,3295.2,3295.0,40.8]
[1736952401401,3.50348655,3295.4,3294.6,1.545]
[1736952401600,3.2078,3295.5,3294.9,0.60714]
[1736952401601,0.6071,3295.2,3294.9,0.60714]
[1736952401801,0.60711,3295.1,3294.8,0.60715]
[1736952402000,3.50348655,3295.4,3294.9,3.2078]
[1736952402204,0.60703,3295.6,3295.3,0.60707]
[1736952402596,3.4157711,3295.5,3295.4,3.2078]
[1736952402801,3.4157711,3295.5,3295.4,3.81485]
[1736952403001,3.2078,3296.3,3295.4,3.2078]
[1736952403205,0.60705,3295.5,3295.2,0.60708]
[1736952403403,6.71025085,3295.9,3295.4,40.8]
[1736952403607,3.50245085,3295.9,3295.6,3.2078]
[1736952403905,4.10944085,3295.8,3295.6,3.2078]
[1736952404105,0.607,3295.7,3295.6,3.2078]
[1736952404311,0.60703,3295.5,3295.4,40.8]
[1736952404500,0.60703,3295.5,3295.4,0.03704745]
[1736952404807,7.14852848,3295.5,3295.4,0.03704745]
[1736952405605,12.14852848,3295.5,3295.4,0.03704745]
[1736952405805,0.60719,3294.7,3294.5,0.6072]
[1736952406009,0.60722,3294.5,3294.4,4.42743]
[1736952406205,0.60722,3294.5,3294.0,40.8]
[1736952406407,0.60733,3293.9,3293.8,3.2078]
[1736952406616,0.60733,3293.9,3293.4,1.545]
[1736952406617,0.6074,3293.5,3293.4,1.545]
[1736952406910,0.60742,3293.4,3293.3,3.2078]
[1736952407115,0.60745,3293.3,3293.0,0.60749]
[1736952407408,3.25125078,3293.4,3293.0,0.60749]
[1736952407608,3.2078,3293.8,3292.9,3.2078]
[1736952407609,3.25125078,3293.7,3292.9,3.2078]
[1736952407814,3.2078,3293.8,3292.9,3.2078]
[1736952407815,0.60747,3293.2,3292.9,3.2078]
[1736952408006,3.25125078,3293.3,3292.9,3.2078]
[1736952408311,0.6075,3293.0,3292.6,4.7392107]
[1736952408512,3.31421713,3293.2,3292.6,0.60756]
[1736952408712,6.47073918,3293.7,3292.4,3.8147]
[1736952409012,0.60743,3293.4,3292.5,0.60758]
[1736952409311,0.60743,3293.4,3293.0,0.60749]
[1736952409511,4.03613498,3293.3,3292.9,0.6075]
[1736952409712,4.03612498,3293.3,3292.9,0.6075]
[1736952409908,0.60742,3293.4,3292.9,0.6075]
[1736952410101,3.42868498,3293.5,3292.9,0.60751]
[1736952410305,3.32203383,3293.3,3292.9,0.60751]
[1736952410506,3.32203383,3293.3,3293.1,0.60746]
[1736952410715,3.32203383,3293.6,3292.8,3.2078]
[1736952411015,0.60728,3294.2,3293.7,0.60735]
[1736952411204,3.8662,3294.3,3293.6,3.2078]
[1736952411405,3.81506,3294.3,3293.9,0.60732]
[1736952411604,3.81506,3294.3,3293.5,1.545]
[1736952411605,3.2078,3294.8,3294.1,0.60727]
[1736952411809,3.2078,3294.8,3294.0,3.2078]
[1736952412115,3.81498,3294.8,3294.5,0.60722]
[1736952412415,3.2078,3294.8,3294.6,0.6072]
[1736952412714,4.5051,3295.2,3294.5,3.2078]
[1736952412911,3.2078,3295.2,3294.5,3.2078]
[1736952413115,0.60712,3295.1,3294.9,0.60714]
[1736952413413,3.25108154,3295.1,3294.9,0.60714]
[1736952413813,3.25108154,3295.1,3295.0,3.2078]
[1736952414120,0.60698,3295.9,3295.6,0.607]
[1736952414310,0.60698,3295.9,3295.0,3.2078]
[1736952414311,0.60701,3295.7,3295.4,0.60704]
[1736952414706,0.60701,3295.7,3295.2,1.545]
[1736952414919,0.6389,3296.0,3295.8,0.60697]
[1736952415121,0.60697,3295.9,3295.6,0.60702]
[1736952415419,3.96068663,3295.9,3295.6,0.60702]
[1736952415724,3.35371663,3295.9,3295.8,0.60698]
[1736952416011,0.60698,3295.9,3295.6,0.607]
[1736952416218,0.60695,3296.0,3295.7,0.607]
[1736952416414,1.51713,3296.5,3295.5,3.2078]
[1736952416415,1.51713,3296.5,3295.6,0.607]
[1736952416605,3.80521456,3295.9,3295.6,0.607]
[1736952416807,0.60698,3295.8,3295.5,3.2078]
[1736952417013,3.2078,3296.2,3294.9,4.7528]
[1736952417319,3.16953276,3295.8,3295.2,0.60709]
[1736952417516,0.60709,3295.3,3295.0,0.60711]
[1736952418016,3.82843276,3295.7,3294.9,3.2078]
[1736952418017,0.24989934,3295.2,3294.9,3.2078]
[1736952418512,0.6589,3295.7,3294.9,3.2078]
[1736952418513,3.20626921,3295.6,3294.9,3.2078]
[1736952418725,3.2078,3295.5,3295.3,0.60706]
[1736952418922,3.2078,3295.5,3294.9,3.2078]
[1736952419119,0.60709,3295.2,3295.0,0.60713]
[1736952419323,0.60709,3295.2,3294.9,3.81493]
[1736952419520,3.24230862,3295.1,3294.9,3.2078]
[1736952419720,3.24230862,3295.1,3295.0,0.60713]
[1736952419919,3.2078,3295.5,3294.9,3.2078]
[1736952420110,3.24230862,3295.3,3294.9,3.2078]
[1736952420418,0.6071,3295.2,3294.9,3.81494]
[1736952420618,3.31443943,3295.2,3294.9,3.2078]
[1736952420821,3.31443943,3295.2,3295.1,0.60711]
[1736952421011,0.11289,3296.0,3294.9,3.2078]
[1736952421214,0.11289,3296.0,3295.9,0.60696]
[1736952422319,0.6401,3297.3,3296.9,0.60676]
[1736952422513,3.8294,3297.6,3296.8,3.2078]
[1736952422714,0.6401,3298.0,3297.3,3.2078]
[1736952423015,1.75970753,3298.8,3296.7,1.545]
[1736952423016,0.60646,3298.7,3298.2,0.60653]
[1736952423313,3.8479,3299.2,3297.8,1.545]
[1736952423517,3.47348304,3298.5,3298.1,3.81435]
[1736952423824,3.47348304,3298.7,3298.6,0.60646]
[1736952424022,0.60638,3299.1,3298.5,3.81427]
[1736952424023,0.60637,3299.1,3298.5,3.81427]
[1736952424225,3.8479,3299.2,3298.5,3.2078]
[1736952424426,3.35009111,3299.0,3298.5,3.2078]
[1736952424817,3.35009111,3299.1,3298.5,3.2078]
[1736952425119,3.39138363,3298.9,3298.5,3.81428]
[1736952425625,3.39138363,3299.1,3298.5,3.2078]
[1736952425814,0.60646,3298.7,3298.2,2.15152]
[1736952426122,3.39138363,3298.9,3298.4,0.6065]
[1736952426319,3.21523161,3299.1,3298.4,0.6065]
[1736952426521,3.21523161,3299.0,3298.2,1.545]
[1736952426715,3.21523161,3298.8,3298.2,1.545]
[1736952426918,0.60645,3298.7,3298.3,0.60651]
[1736952427125,3.1675897,3298.9,3298.2,1.545]
[1736952427326,3.1675897,3298.9,3298.8,0.60643]
[1736952427518,3.1675897,3299.1,3298.6,3.2078]
[1736952427715,3.1675897,3299.1,3298.8,0.60641]
[1736952428017,3.2078,3299.7,3298.6,3.2078]
[1736952428329,3.93684203,3299.1,3298.8,0.60642]
[1736952428515,3.33046203,3299.5,3298.6,3.2078]
[1736952428723,0.60638,3299.1,3298.7,0.60644]
[1736952428922,3.2078,3299.7,3298.6,3.2078]
[1736952429124,3.33046203,3299.5,3299.0,3.2078]
[1736952429325,0.6063,3299.5,3299.2,0.60634]
[1736952429520,0.60634,3299.3,3299.0,3.81418]
[1736952429822,0.60636,3299.2,3299.0,3.81419]
[1736952430017,3.43163685,3299.2,3299.0,3.2078]
[1736952430224,3.51793814,3299.3,3298.6,1.543]
[1736952430528,6.63943685,3299.4,3298.6,1.543]
[1736952430727,0.60641,3298.9,3298.7,0.60645]